fUST/lending_fUST_20250131
["ID","MTS","AMOUNT","RATE_DAILY","PERIOD"]
[351010993,1738285839041,-500.0,0.00016438,2]
[351010994,1738285839050,-500.0,0.00016438,2]
[351010995,1738285839060,-202.04903747,0.00016438,2]
[351010996,1738285839070,-500.0,0.00016438,2]
[351010997,1738285839080,-500.0,0.00016438,2]
[351010998,1738285839089,-500.0,0.00016438,2]
[351010999,1738285839099,-581.03,0.00016438,2]
[351011000,1738285839108,-500.0,0.00016438,2]
[351011001,1738285839118,-224.14423402,0.00016438,2]
[351011002,1738285839129,-500.0,0.00016438,2]
[351011003,1738285839139,-500.0,0.00016438,2]
[351011004,1738285839149,-500.0,0.00016438,2]
[351011005,1738285839159,-500.0,0.00016438,2]
[351011006,1738285839168,-500.0,0.00016438,2]
[351011007,1738285839177,-500.0,0.00016438,2]
[351011008,1738285839186,-521.80249129,0.00016438,2]
[351011009,1738285839196,-500.0,0.00016438,2]
[351011010,1738285839205,-500.0,0.00016438,2]
[351011011,1738285839214,-502.75685267,0.00016438,2]
[351011012,1738285839223,-500.0,0.00016438,2]
[351011013,1738285839233,-416.22236119,0.00016438,2]
[351011014,1738285839242,-500.0,0.00016438,2]
[351011015,1738285839252,-500.0,0.00016438,2]
[351011016,1738285839261,-500.0,0.00016438,2]
[351011017,1738285839270,-501.5007339,0.00016438,2]
[351011018,1738285839280,-500.0,0.00016438,2]
[351011019,1738285839290,-500.0,0.00016438,2]
[351011020,1738285839299,-500.0,0.00016438,2]
[351011021,1738285839308,-500.0,0.00016438,2]
[351011022,1738285839318,-625.60647241,0.00016438,2]
[351011023,1738285839327,-500.0,0.00016438,2]
[351011024,1738285839337,-500.0,0.00016438,2]
[351011025,1738285839347,-500.0,0.00016438,2]
[351011026,1738285839356,-500.0,0.00016438,2]
[351011027,1738285839370,-327.81420933,0.00016438,2]
[351011028,1738285839379,-500.0,0.00016438,2]
[351011029,1738285839389,-500.0,0.00016438,2]
[351011030,1738285839399,-500.0,0.00016438,2]
[351011031,1738285839411,-500.0,0.00016438,2]
[351011032,1738285839421,-500.0,0.00016438,2]
[351011033,1738285839430,-500.0,0.00016438,2]
[351011034,1738285839440,-500.17889609,0.00016438,2]
[351011035,1738285839450,-500.0,0.00016438,2]
[351011036,1738285839459,-500.0,0.00016438,2]
[351011037,1738285839469,-500.0,0.00016438,2]
[351011038,1738285839478,-500.0,0.00016438,2]
[351011039,1738285839487,-505.25518868,0.00016438,2]
[351011040,1738285839497,-500.0,0.00016438,2]
[351011041,1738285839507,-500.0,0.00016438,2]
[351011042,1738285839516,-501.69804618,0.00016438,2]
[351011043,1738285839526,-500.0,0.00016438,2]
[351011044,1738285839537,-511.85820235,0.00016438,2]
[351011045,1738285839547,-500.0,0.00016438,2]
[351011046,1738285839557,-500.0,0.00016438,2]
[351011047,1738285839566,-500.0,0.00016438,2]
[351011048,1738285839576,-500.0,0.00016438,2]
[351011049,1738285839587,-500.0,0.00016438,2]
[351011050,1738285839596,-500.0,0.00016438,2]
[351011051,1738285839605,-500.0,0.00016438,2]
[351011052,1738285839615,-500.0,0.00016438,2]
[351011053,1738285839625,-500.0,0.00016438,2]
[351011054,1738285839634,-500.0,0.00016438,2]
[351011055,1738285839644,-500.0,0.00016438,2]
[351011056,1738285839654,-500.0,0.00016438,2]
[351011057,1738285839664,-517.54274188,0.00016438,2]
[351011058,1738285839675,-500.0,0.00016438,2]
[351011059,1738285839685,-500.0,0.00016438,2]
[351011060,1738285839695,-500.0,0.00016438,2]
[351011061,1738285839705,-500.0,0.00016438,2]
[351011062,1738285839714,-507.94244648,0.00016438,2]
[351011063,1738285839723,-500.0,0.00016438,2]
[351011064,1738285839733,-500.0,0.00016438,2]
[351011065,1738285839743,-500.0,0.00016438,2]
[351011066,1738285839752,-500.0,0.00016438,2]
[351011067,1738285839761,-500.0,0.00016438,2]
[351011068,1738285839770,-500.0,0.00016438,2]
[351011069,1738285839780,-500.0,0.00016438,2]
[351011070,1738285839789,-506.48418906,0.00016438,2]
[351011071,1738285839798,-500.0,0.00016438,2]
[351011072,1738285839807,-500.0,0.00016438,2]
[351011073,1738285839816,-500.0,0.00016438,2]
[351011074,1738285839825,-500.0,0.00016438,2]
[351011075,1738285839835,-500.0,0.00016438,2]
[351011076,1738285839844,-500.0,0.00016438,2]
[351011077,1738285839853,-500.0,0.00016438,2]
[351011078,1738285839862,-500.0,0.00016438,2]
[351011079,1738285839872,-251.7,0.00016438,2]
[351011080,1738285839881,-340.19792056,0.00016438,2]
[351011081,1738285839892,-500.0,0.00016438,2]
[351011082,1738285839901,-518.73744126,0.00016438,2]
[351011083,1738285839911,-500.0,0.00016438,2]
[351011084,1738285839921,-721.01,0.00016438,2]
[351011085,1738285839931,-500.0,0.00016438,2]
[351011086,1738285839941,-500.0,0.00016438,2]
[351011087,1738285839950,-500.0,0.00016438,2]
[351011088,1738285839960,-500.0,0.00016438,2]
[351011089,1738285839969,-1050.33,0.00016438,2]
[351011090,1738285839979,-500.0,0.00016438,2]
[351011091,1738285839988,-219.42,0.00016438,2]
[351011092,1738285839998,-500.0,0.00016438,2]
[351011093,1738285840008,-500.0,0.00016438,2]
[351011094,1738285840017,-500.0,0.00016438,2]
[351011095,1738285840026,-500.0,0.00016438,2]
[351011096,1738285840036,-500.0,0.00016438,2]
[351011097,1738285840045,-500.0,0.00016438,2]
[351011098,1738285840055,-486.61859352,0.00016438,2]
[351011099,1738285840064,-2015.29,0.00016438,2]
[351011100,1738285840074,-574.98,0.00016438,2]
[351011101,1738285840083,-500.0,0.00016438,2]
[351011102,1738285840093,-630.44,0.00016438,2]
[351011103,1738285840102,-500.0,0.00016438,2]
[351011104,1738285840111,-2574.71,0.00016438,2]
[351011105,1738285840121,-593.19,0.00016438,2]
[351011106,1738285840131,-500.0,0.00016438,2]
[351011107,1738285840140,-500.0,0.00016438,2]
[351011108,1738285840150,-726.34,0.00016438,2]
[351011109,1738285840161,-500.0,0.00016438,2]
[351011110,1738285840170,-618.14,0.00016438,2]
[351011111,1738285840180,-500.0,0.00016438,2]
[351011112,1738285840189,-196.56,0.00016438,2]
[351011113,1738285840199,-503.43820277,0.00016438,2]
[351011114,1738285840208,-500.0,0.00016438,2]
[351011116,1738285840217,-649.66,0.00016438,2]
[351011117,1738285840227,-500.0,0.00016438,2]
[351011118,1738285840237,-1332.99,0.00016438,2]
[351011119,1738285840246,-226.30262766,0.00016438,2]
[351011120,1738285840259,-224.32,0.00016438,2]
[351011121,1738285840268,-500.0,0.00016573,2]
[351011122,1738285840278,-5890.32,0.00016573,2]
[351011123,1738285840287,-500.0,0.00016573,2]
[351011124,1738285840297,-500.0,0.00016573,2]
[351011125,1738285840306,-2848.7,0.00016573,2]
[351011126,1738285840315,-2767.1,0.00016573,2]
[351011128,1738285840325,-500.0,0.00016574,2]
[351011130,1738285840334,-500.0,0.00016574,2]
[351011132,1738285840343,-500.0,0.00016574,2]
[351011134,1738285840354,-500.0,0.00016575,2]
[351011135,1738285840367,-500.0,0.00016575,2]
[351011136,1738285840376,-500.0,0.00016575,2]
[351011137,1738285840386,-500.0,0.00016575,2]
[351011138,1738285840395,-500.0,0.00016575,2]
[351011139,1738285840407,-440.11186847,0.00016575,2]
[351011140,1738285840417,-500.0,0.00016575,2]
[351011141,1738285840426,-500.0,0.00016575,2]
[351011142,1738285840438,-500.0,0.00016575,2]
[351011143,1738285840448,-500.0,0.00016575,2]
[351011144,1738285840457,-462.65437725,0.00016575,2]
[351011145,1738285840467,-500.0,0.00016575,2]
[351011146,1738285840476,-500.0,0.00016575,2]
[351011147,1738285840486,-447.69,0.00016575,2]
[351011148,1738285840496,-500.0,0.00016575,2]
[351011149,1738285840508,-512.7,0.00016575,2]
[351011150,1738285840517,-500.0,0.00016575,2]
[351011151,1738285840527,-500.0,0.00016575,2]
[351011152,1738285840536,-500.0,0.00016575,2]
[351011153,1738285840545,-500.0,0.00016575,2]
[351011154,1738285840555,-424.8833044,0.00016575,2]
[351011155,1738285840564,-208.96,0.00016575,2]
[351011156,1738285840574,-500.0,0.00016575,2]
[351011158,1738285840591,-500.0,0.00016575,2]
[351011160,1738285840600,-500.0,0.00016575,2]
[351011162,1738285840610,-500.0,0.00016575,2]
[351011164,1738285840619,-500.0,0.00016575,2]
[351011166,1738285840629,-500.0,0.00016575,2]
[351011168,1738285840639,-500.0,0.00016575,2]
[351011170,1738285840648,-721.01,0.00016575,2]
[351011172,1738285840658,-272.48,0.00016575,2]
[351011174,1738285840667,-500.0,0.00016575,2]
[351011176,1738285840677,-1050.33,0.00016575,2]
[351011178,1738285840686,-500.0,0.00016575,2]
[351011180,1738285840695,-500.0,0.00016575,2]
[351011182,1738285840704,-500.0,0.00016575,2]
[351011184,1738285840714,-500.0,0.00016575,2]
[351011186,1738285840723,-500.0,0.00016575,2]
[351011188,1738285840732,-214.87981809,0.00016575,2]
[351011189,1738285840741,-2015.29,0.00016575,2]
[351011191,1738285840754,-574.98,0.00016575,2]
[351011193,1738285840763,-500.0,0.00016575,2]
[351011195,1738285840772,-630.44,0.00016575,2]
[351011197,1738285840781,-500.0,0.00016575,2]
[351011199,1738285840791,-2574.71,0.00016575,2]
[351011201,1738285840801,-500.0,0.00016575,2]
[351011203,1738285840810,-500.0,0.00016575,2]
[351011205,1738285840819,-726.34,0.00016575,2]
[351011207,1738285840829,-500.0,0.00016575,2]
[351011209,1738285840838,-618.14,0.00016575,2]
[351011211,1738285840847,-500.0,0.00016575,2]
[351011213,1738285840856,-649.66,0.00016575,2]
[351011215,1738285840866,-1332.99,0.00016575,2]
[351011217,1738285840875,-500.0,0.0001671,2]
[351011219,1738285840884,-5890.32,0.0001671,2]
[351011221,1738285840894,-500.0,0.0001671,2]
[351011223,1738285840903,-2848.7,0.0001671,2]
[351011225,1738285840912,-2767.1,0.0001671,2]
[351011227,1738285840921,-500.0,0.00016711,2]
[351011229,1738285840931,-500.0,0.00016711,2]
[351011231,1738285840940,-500.0,0.00016712,2]
[351011233,1738285840949,-500.0,0.00016712,2]
[351011235,1738285840959,-276.33,0.00016712,2]
[351011237,1738285840968,-500.0,0.00016712,2]
[351011239,1738285840978,-500.0,0.00016712,2]
[351011241,1738285840987,-500.0,0.00016712,2]
[351011243,1738285840996,-500.0,0.00016712,2]
[351011245,1738285841009,-500.0,0.00016712,2]
[351011247,1738285841019,-500.0,0.00016712,2]
[351011249,1738285841028,-500.0,0.00016712,2]
[351011250,1738285841038,-500.0,0.00016712,2]
[351011252,1738285841048,-500.0,0.00016712,2]
[351011254,1738285841058,-500.0,0.00016712,2]
[351011256,1738285841068,-500.0,0.00016712,2]
[351011258,1738285841078,-721.01,0.00016712,2]
[351011260,1738285841088,-500.0,0.00016712,2]
[351011262,1738285841098,-1050.33,0.00016712,2]
[351011264,1738285841110,-500.0,0.00016712,2]
[351011266,1738285841119,-500.0,0.00016712,2]
[351011268,1738285841129,-500.0,0.00016712,2]
[351011270,1738285841138,-500.0,0.00016712,2]
[351011272,1738285841147,-500.0,0.00016712,2]
[351011274,1738285841156,-2015.29,0.00016712,2]
[351011276,1738285841166,-574.98,0.00016712,2]
[351011278,1738285841175,-500.0,0.00016712,2]
[351011280,1738285841184,-630.44,0.00016712,2]
[351011282,1738285841193,-500.0,0.00016712,2]
[351011284,1738285841203,-2574.71,0.00016712,2]
[351011286,1738285841212,-500.0,0.00016712,2]
[351011288,1738285841221,-500.0,0.00016712,2]
[351011290,1738285841230,-726.34,0.00016712,2]
[351011292,1738285841240,-500.0,0.00016712,2]
[351011294,1738285841249,-618.14,0.00016712,2]
[351011296,1738285841263,-500.0,0.00016712,2]
[351011298,1738285841273,-649.66,0.00016712,2]
[351011300,1738285841283,-1332.99,0.00016712,2]
[351011302,1738285841292,-500.0,0.00016847,2]
[351011304,1738285841302,-5890.32,0.00016847,2]
[351011306,1738285841311,-500.0,0.00016847,2]
[351011308,1738285841320,-2848.7,0.00016847,2]
[351011310,1738285841330,-2767.1,0.00016847,2]
[351011312,1738285841339,-403.76925805,0.00016848,2]
[351011314,1738285841348,-500.0,0.00016849,2]
[351011316,1738285841358,-500.0,0.00016849,2]
[351011318,1738285841370,-500.0,0.00016849,2]
[351011320,1738285841380,-500.0,0.00016849,2]
[351011322,1738285841389,-500.0,0.00016849,2]
[351011324,1738285841398,-500.0,0.00016849,2]
[351011326,1738285841407,-500.0,0.00016849,2]
[351011328,1738285841416,-500.0,0.00016849,2]
[351011330,1738285841426,-500.0,0.00016849,2]
[351011332,1738285841435,-500.0,0.00016849,2]
[351011334,1738285841447,-721.01,0.00016849,2]
[351011336,1738285841457,-500.0,0.00016849,2]
[351011338,1738285841466,-1050.33,0.00016849,2]
[351011340,1738285841476,-500.0,0.00016849,2]
[351011342,1738285841485,-500.0,0.00016849,2]
[351011344,1738285841495,-500.0,0.00016849,2]
[351011346,1738285841505,-422.25,0.00016849,2]
[351011348,1738285841515,-500.0,0.00016849,2]
[351011350,1738285841524,-2015.29,0.00016849,2]
[351011352,1738285841534,-574.98,0.00016849,2]
[351011354,1738285841544,-500.0,0.00016849,2]
[351011355,1738285841553,-630.44,0.00016849,2]
[351011357,1738285841563,-500.0,0.00016849,2]
[351011359,1738285841572,-2574.71,0.00016849,2]
[351011362,1738285841582,-500.0,0.00016849,2]
[351011363,1738285841592,-500.0,0.00016849,2]
[351011365,1738285841602,-726.34,0.00016849,2]
[351011367,1738285841611,-500.0,0.00016849,2]
[351011369,1738285841621,-618.14,0.00016849,2]
[351011372,1738285841631,-500.0,0.00016849,2]
[351011374,1738285841641,-649.66,0.00016849,2]
[351011376,1738285841651,-1332.99,0.00016849,2]
[351011378,1738285841660,-500.0,0.00016903,2]
[351011379,1738285841669,-500.0,0.00016984,2]
[351011381,1738285841679,-5890.32,0.00016984,2]
[351011383,1738285841689,-500.0,0.00016984,2]
[351011386,1738285841698,-2848.7,0.00016984,2]
[351011387,1738285841707,-2767.1,0.00016984,2]
[351011389,1738285841717,-500.0,0.00016986,2]
[351011391,1738285841726,-500.0,0.00016986,2]
[351011393,1738285841735,-500.0,0.00016986,2]
[351011395,1738285841744,-500.0,0.00016986,2]
[351011397,1738285841754,-500.0,0.00016986,2]
[351011399,1738285841764,-500.0,0.00016986,2]
[351011401,1738285841773,-500.0,0.00016986,2]
[351011403,1738285841783,-500.0,0.00016986,2]
[351011405,1738285841793,-500.0,0.00016986,2]
[351011407,1738285841803,-721.01,0.00016986,2]
[351011421,1738285841929,-500.0,0.00016986,2]
[351011423,1738285841939,-1050.33,0.00016986,2]
[351011425,1738285841948,-500.0,0.00016986,2]
[351011427,1738285841958,-500.0,0.00016986,2]
[351011429,1738285841967,-500.0,0.00016986,2]
[351011431,1738285841976,-500.0,0.00016986,2]
[351011433,1738285841986,-2015.29,0.00016986,2]
[351011435,1738285841995,-574.98,0.00016986,2]
[351011437,1738285842006,-500.0,0.00016986,2]
[351011439,1738285842015,-630.44,0.00016986,2]
[351011441,1738285842024,-500.0,0.00016986,2]
[351011443,1738285842034,-2574.71,0.00016986,2]
[351011444,1738285842043,-500.0,0.00016986,2]
[351011446,1738285842052,-500.0,0.00016986,2]
[351011448,1738285842062,-726.34,0.00016986,2]
[351011450,1738285842071,-500.0,0.00016986,2]
[351011452,1738285842080,-618.14,0.00016986,2]
[351011454,1738285842090,-500.0,0.00016986,2]
[351011456,1738285842099,-649.66,0.00016986,2]
[351011458,1738285842109,-1332.99,0.00016986,2]
[351011460,1738285842118,-420.0,0.00016997,2]
[351011462,1738285842129,-500.0,0.00017102,2]
[351011465,1738285842139,-500.0,0.00017121,2]
[351011466,1738285842148,-5890.32,0.00017121,2]
[351011468,1738285842158,-500.0,0.00017121,2]
[351011470,1738285842167,-2848.7,0.00017121,2]
[351011472,1738285842177,-2767.1,0.00017121,2]
[351011474,1738285842186,-500.0,0.00017123,2]
[351011477,1738285842196,-167.48,0.00017123,2]
[351011478,1738285842206,-500.0,0.00017123,2]
[351011480,1738285842217,-500.0,0.00017123,2]
[351011482,1738285842226,-500.0,0.00017123,2]
[351011484,1738285842236,-500.0,0.00017123,2]
[351011486,1738285842245,-500.0,0.00017123,2]
[351011488,1738285842257,-500.0,0.00017123,2]
[351011490,1738285842266,-500.0,0.00017123,2]
[351011492,1738285842276,-721.01,0.00017123,2]
[351011495,1738285842286,-500.0,0.00017123,2]
[351011497,1738285842296,-1050.33,0.00017123,2]
[351011499,1738285842305,-500.0,0.00017123,2]
[351011501,1738285842315,-500.0,0.00017123,2]
[351011503,1738285842324,-500.0,0.00017123,2]
[351011505,1738285842333,-500.0,0.00017123,2]
[351011507,1738285842342,-2015.29,0.00017123,2]
[351011509,1738285842352,-574.98,0.00017123,2]
[351011511,1738285842363,-500.0,0.00017123,2]
[351011513,1738285842373,-630.44,0.00017123,2]
[351011515,1738285842383,-500.0,0.00017123,2]
[351011517,1738285842392,-2574.71,0.00017123,2]
[351011518,1738285842402,-500.0,0.00017123,2]
[351011521,1738285842412,-500.0,0.00017123,2]
[351011522,1738285842422,-726.34,0.00017123,2]
[351011524,1738285842431,-500.0,0.00017123,2]
[351011526,1738285842440,-618.14,0.00017123,2]
[351011528,1738285842451,-500.0,0.00017123,2]
[351011530,1738285842459,-649.66,0.00017123,2]
[351011532,1738285842469,-1332.99,0.00017123,2]
[351011534,1738285842479,-500.0,0.00017258,2]
[351011536,1738285842488,-5890.32,0.00017258,2]
[351011538,1738285842498,-500.0,0.00017258,2]
[351011540,1738285842511,-2848.7,0.00017258,2]
[351011542,1738285842521,-2767.1,0.00017258,2]
[351011544,1738285842530,-500.0,0.00017259,2]
[351011546,1738285842540,-500.0,0.00017259,2]
[351011548,1738285842549,-500.0,0.0001726,2]
[351011550,1738285842558,-500.0,0.0001726,2]
[351011552,1738285842567,-500.0,0.0001726,2]
[351011554,1738285842576,-500.0,0.0001726,2]
[351011556,1738285842586,-500.0,0.0001726,2]
[351011558,1738285842595,-500.0,0.0001726,2]
[351011560,1738285842604,-500.0,0.0001726,2]
[351011562,1738285842612,-721.01,0.0001726,2]
[351011564,1738285842621,-500.0,0.0001726,2]
[351011566,1738285842630,-1050.33,0.0001726,2]
[351011568,1738285842640,-500.0,0.0001726,2]
[351011570,1738285842649,-500.0,0.0001726,2]
[351011572,1738285842658,-500.0,0.0001726,2]
[351011574,1738285842667,-500.0,0.0001726,2]
[351011576,1738285842676,-2015.29,0.0001726,2]
[351011578,1738285842685,-574.98,0.0001726,2]
[351011580,1738285842693,-500.0,0.0001726,2]
[351011582,1738285842702,-630.44,0.0001726,2]
[351011584,1738285842711,-500.0,0.0001726,2]
[351011585,1738285842721,-2574.71,0.0001726,2]
[351011587,1738285842730,-500.0,0.0001726,2]
[351011589,1738285842739,-500.0,0.0001726,2]
[351011591,1738285842748,-726.34,0.0001726,2]
[351011593,1738285842758,-500.0,0.0001726,2]
[351011595,1738285842767,-618.14,0.0001726,2]
[351011597,1738285842776,-500.0,0.0001726,2]
[351011599,1738285842784,-649.66,0.0001726,2]
[351011601,1738285842794,-1332.99,0.0001726,2]
[351011603,1738285842803,-500.0,0.00017395,2]
[351011605,1738285842812,-5890.32,0.00017395,2]
[351011607,1738285842821,-500.0,0.00017395,2]
[351011609,1738285842830,-2848.7,0.00017395,2]
[351011611,1738285842839,-2767.1,0.00017395,2]
[351011613,1738285842848,-500.0,0.00017397,2]
[351011615,1738285842856,-500.0,0.00017397,2]
[351011617,1738285842866,-500.0,0.00017397,2]
[351011619,1738285842875,-500.0,0.00017397,2]
[351011621,1738285842883,-500.0,0.00017397,2]
[351011623,1738285842892,-500.0,0.00017397,2]
[351011625,1738285842901,-500.0,0.00017397,2]
[351011627,1738285842911,-721.01,0.00017397,2]
[351011629,1738285842921,-500.0,0.00017397,2]
[351011631,1738285842930,-1050.33,0.00017397,2]
[351011633,1738285842938,-500.0,0.00017397,2]
[351011635,1738285842947,-500.0,0.00017397,2]
[351011637,1738285842956,-500.0,0.00017397,2]
[351011639,1738285842965,-500.0,0.00017397,2]
[351011641,1738285842974,-2015.29,0.00017397,2]
[351011643,1738285842983,-574.98,0.00017397,2]
[351011645,1738285842992,-500.0,0.00017397,2]
[351011646,1738285843001,-630.44,0.00017397,2]
[351011648,1738285843011,-500.0,0.00017397,2]
[351011650,1738285843021,-2574.71,0.00017397,2]
[351011652,1738285843031,-500.0,0.00017397,2]
[351011655,1738285843040,-500.0,0.00017397,2]
[351011658,1738285843049,-726.34,0.00017397,2]
[351011661,1738285843059,-500.0,0.00017397,2]
[351011663,1738285843068,-618.14,0.00017397,2]
[351011665,1738285843077,-500.0,0.00017397,2]
[351011667,1738285843086,-649.66,0.00017397,2]
[351011669,1738285843095,-1332.99,0.00017397,2]
[351011671,1738285843104,-1000.0,0.00017451,2]
[351011673,1738285843113,-500.0,0.00017532,2]
[351011675,1738285843123,-5890.32,0.00017532,2]
[351011677,1738285843133,-500.0,0.00017532,2]
[351011679,1738285843143,-2848.7,0.00017532,2]
[351011682,1738285843152,-2767.1,0.00017532,2]
[351011685,1738285843161,-500.0,0.00017534,2]
[351011687,1738285843170,-500.0,0.00017534,2]
[351011690,1738285843179,-500.0,0.00017534,2]
[351011693,1738285843188,-500.0,0.00017534,2]
[351011696,1738285843197,-500.0,0.00017534,2]
[351011698,1738285843206,-500.0,0.00017534,2]
[351011701,1738285843215,-500.0,0.00017534,2]
[351011703,1738285843225,-721.01,0.00017534,2]
[351011705,1738285843234,-500.0,0.00017534,2]
[351011707,1738285843243,-1050.33,0.00017534,2]
[351011710,1738285843252,-500.0,0.00017534,2]
[351011712,1738285843262,-500.0,0.00017534,2]
[351011714,1738285843271,-500.0,0.00017534,2]
[351011716,1738285843280,-500.0,0.00017534,2]
[351011718,1738285843289,-2015.29,0.00017534,2]
[351011720,1738285843298,-574.98,0.00017534,2]
[351011722,1738285843307,-500.0,0.00017534,2]
[351011724,1738285843317,-630.44,0.00017534,2]
[351011726,1738285843327,-500.0,0.00017534,2]
[351011728,1738285843336,-2574.71,0.00017534,2]
[351011730,1738285843345,-500.0,0.00017534,2]
[351011732,1738285843354,-500.0,0.00017534,2]
[351011734,1738285843365,-726.34,0.00017534,2]
[351011736,1738285843375,-500.0,0.00017534,2]
[351011738,1738285843384,-618.14,0.00017534,2]
[351011740,1738285843393,-500.0,0.00017534,2]
[351011742,1738285843404,-649.66,0.00017534,2]
[351011744,1738285843413,-1332.99,0.00017534,2]
[351011746,1738285843422,-171.63785368,0.00017669,2]
[351011748,1738285843431,-5890.32,0.00017669,2]
[351011750,1738285843442,-500.0,0.00017669,2]
[351011752,1738285843452,-2848.7,0.00017669,2]
[351011754,1738285843461,-2767.1,0.00017669,2]
[351011756,1738285843470,-500.0,0.00017671,2]
[351011758,1738285843479,-500.0,0.00017671,2]
[351011760,1738285843487,-500.0,0.00017671,2]
[351011762,1738285843497,-500.0,0.00017671,2]
[351011763,1738285843507,-500.0,0.00017671,2]
[351011765,1738285843516,-500.0,0.00017671,2]
[351011767,1738285843525,-721.01,0.00017671,2]
[351011769,1738285843534,-500.0,0.00017671,2]
[351011771,1738285843543,-1050.33,0.00017671,2]
[351011773,1738285843552,-500.0,0.00017671,2]
[351011775,1738285843561,-500.0,0.00017671,2]
[351011777,1738285843571,-500.0,0.00017671,2]
[351011779,1738285843579,-430.0,0.00017671,2]
[351011781,1738285843588,-2015.29,0.00017671,2]
[351011783,1738285843598,-574.98,0.00017671,2]
[351011785,1738285843607,-500.0,0.00017671,2]
[351011787,1738285843616,-630.44,0.00017671,2]
[351011789,1738285843625,-500.0,0.00017671,2]
[351011791,1738285843634,-2574.71,0.00017671,2]
[351011793,1738285843643,-500.0,0.00017671,2]
[351011795,1738285843652,-500.0,0.00017671,2]
[351011797,1738285843661,-726.34,0.00017671,2]
[351011799,1738285843671,-500.0,0.00017671,2]
[351011801,1738285843680,-618.14,0.00017671,2]
[351011803,1738285843690,-500.0,0.00017671,2]
[351011805,1738285843699,-649.66,0.00017671,2]
[351011807,1738285843709,-1332.99,0.00017671,2]
[351011809,1738285843718,-5890.32,0.00017806,2]
[351011811,1738285843727,-500.0,0.00017806,2]
[351011813,1738285843736,-2848.7,0.00017806,2]
[351011815,1738285843746,-2767.1,0.00017806,2]
[351011817,1738285843755,-500.0,0.00017808,2]
[351011819,1738285843765,-500.0,0.00017808,2]
[351011821,1738285843774,-500.0,0.00017808,2]
[351011823,1738285843783,-500.0,0.00017808,2]
[351011825,1738285843793,-500.0,0.00017808,2]
[351011827,1738285843802,-500.0,0.00017808,2]
[351011829,1738285843813,-721.01,0.00017808,2]
[351011831,1738285843822,-500.0,0.00017808,2]
[351011833,1738285843832,-1050.33,0.00017808,2]
[351011835,1738285843841,-500.0,0.00017808,2]
[351011837,1738285843856,-500.0,0.00017808,2]
[351011838,1738285843871,-500.0,0.00017808,2]
[351011839,1738285843885,-2015.29,0.00017808,2]
[351011840,1738285843894,-574.98,0.00017808,2]
[351011841,1738285843905,-500.0,0.00017808,2]
[351011842,1738285843914,-630.44,0.00017808,2]
[351011843,1738285843924,-500.0,0.00017808,2]
[351011844,1738285843933,-2574.71,0.00017808,2]
[351011845,1738285843942,-500.0,0.00017808,2]